fUST/lending_fUST_20240826
["ID","MTS","AMOUNT","RATE_DAILY","PERIOD"]
[335979929,1724650241987,-500.0,0.00012283,2]
[335979930,1724650241997,-500.0,0.00012283,2]
[335979931,1724650242008,-521.77,0.00012283,2]
[335979932,1724650242018,-694.18,0.00012283,2]
[335979933,1724650242027,-874.63,0.00012283,2]
[335979934,1724650242038,-500.0,0.00012283,2]
[335979935,1724650242050,-45882.70176929,0.00012346,2]
[335979936,1724650242388,-500.0,0.00012261,2]
[335979937,1724650242398,-4120.16640562,0.00012346,2]
[335979938,1724650242410,-5154.25897549,0.00012346,2]
[335979939,1724650242421,-584.68134132,0.00012446,2]
[335979940,1724650242431,-190.80297655,0.000125,2]
[335979941,1724650242442,-55157.1271504,0.00012535,2]
[335979942,1724650242452,-558.4,0.00012535,2]
[335979943,1724650242462,-865.51,0.00012535,2]
[335979944,1724650242472,-500.0,0.00012535,2]
[335979945,1724650242486,-500.0,0.00012535,2]
[335979946,1724650242497,-500.0,0.00012545,2]
[335979947,1724650242506,-9543.39,0.00012545,2]
[335979948,1724650242518,-2405.69,0.00012545,2]
[335979949,1724650242527,-3996.92,0.00012545,2]
[335979950,1724650242537,-656.04,0.00012545,2]
[335979951,1724650242547,-2925.05,0.00012545,2]
[335979952,1724650242559,-500.0,0.00012545,2]
[335979953,1724650242569,-500.0,0.00012545,2]
[335979954,1724650242579,-1190.65,0.00012545,2]
[335979955,1724650242589,-500.0,0.00012545,2]
[335979956,1724650242599,-513.98,0.00012545,2]
[335979957,1724650242610,-611.7,0.00012545,2]
[335979958,1724650242620,-500.0,0.00012545,2]
[335979959,1724650242630,-500.0,0.00012545,2]
[335979960,1724650242641,-22994.88,0.00012545,2]
[335979961,1724650242651,-500.0,0.00012545,2]
[335979962,1724650242663,-623.28,0.00012545,2]
[335979963,1724650242673,-595.72,0.00012545,2]
[335979964,1724650242682,-667.42,0.00012545,2]
[335979965,1724650242692,-1358.48,0.00012545,2]
[335979967,1724650242702,-500.0,0.00012545,2]
[335979968,1724650242712,-500.0,0.00012545,2]
[335979969,1724650242723,-500.0,0.00012545,2]
[335979971,1724650242733,-1125.94,0.00012545,2]
[335979974,1724650242743,-986.66,0.00012545,2]
[335979976,1724650242753,-6027.87,0.00012545,2]
[335979978,1724650242771,-500.0,0.00012545,2]
[335979980,1724650242783,-639.95,0.00012545,2]
[335979982,1724650242792,-719.62,0.00012545,2]
[335979984,1724650242802,-500.0,0.00012545,2]
[335979986,1724650242812,-535.91,0.00012545,2]
[335979988,1724650242823,-8517.74,0.00012545,2]
[335979989,1724650242833,-500.0,0.00012545,2]
[335979990,1724650242843,-500.0,0.00012545,2]
[335979992,1724650242853,-500.0,0.00012545,2]
[335979994,1724650242862,-1901.09,0.00012545,2]
[335979996,1724650242872,-500.0,0.00012545,2]
[335979997,1724650242882,-500.0,0.00012545,2]
[335979998,1724650242891,-541.1,0.00012545,2]
[335979999,1724650242901,-500.0,0.00012545,2]
[335980000,1724650242910,-1667.71,0.00012545,2]
[335980001,1724650242919,-770.65,0.00012545,2]
[335980002,1724650242930,-500.0,0.00012545,2]
[335980003,1724650242945,-500.0,0.00012546,2]
[335980004,1724650242955,-214.63746201,0.00012546,2]
[335980005,1724650242964,-741.16,0.00012546,2]
[335980006,1724650242975,-500.0,0.00012546,2]
[335980008,1724650242984,-500.0,0.00012546,2]
[335980010,1724650242994,-500.0,0.00012546,2]
[335980012,1724650243004,-500.0,0.00012546,2]
[335980014,1724650243016,-500.0,0.00012546,2]
[335980015,1724650243025,-840.02,0.00012546,2]
[335980016,1724650243035,-803.44,0.00012546,2]
[335980017,1724650243045,-500.0,0.00012546,2]
[335980018,1724650243054,-575.83,0.00012546,2]
[335980019,1724650243064,-500.0,0.00012546,2]
[335980020,1724650243075,-640.78,0.00012546,2]
[335980021,1724650243087,-500.0,0.00012546,2]
[335980022,1724650243099,-663.69,0.00012546,2]
[335980024,1724650243111,-500.0,0.00012546,2]
[335980026,1724650243122,-665.74,0.00012546,2]
[335980027,1724650243133,-500.0,0.00012546,2]
[335980028,1724650243143,-760.06,0.00012546,2]
[335980029,1724650243154,-500.0,0.00012546,2]
[335980030,1724650243164,-937.63,0.00012546,2]
[335980031,1724650243174,-500.0,0.00012546,2]
[335980032,1724650243184,-835.31,0.00012546,2]
[335980033,1724650243194,-500.0,0.00012546,2]
[335980034,1724650243204,-549.53,0.00012546,2]
[335980035,1724650243214,-500.0,0.00012546,2]
[335980036,1724650243224,-754.27,0.00012546,2]
[335980037,1724650243234,-500.0,0.00012546,2]
[335980038,1724650243244,-500.0,0.00012546,2]
[335980039,1724650243254,-517.95,0.00012546,2]
[335980040,1724650243265,-500.0,0.00012546,2]
[335980041,1724650243275,-500.0,0.00012546,2]
[335980042,1724650243285,-500.0,0.00012546,2]
[335980043,1724650243295,-874.82,0.00012546,2]
[335980044,1724650243308,-500.0,0.00012546,2]
[335980045,1724650243318,-500.0,0.00012546,2]
[335980046,1724650243328,-796.99,0.00012546,2]
[335980047,1724650243338,-500.0,0.00012546,2]
[335980048,1724650243349,-598.16,0.00012546,2]
[335980049,1724650243360,-622.53,0.00012546,2]
[335980050,1724650243370,-500.0,0.00012546,2]
[335980051,1724650243380,-382.98761858,0.00012546,2]
[335980052,1724650243390,-649.38,0.00012546,2]
[335980053,1724650243401,-855.92,0.00012546,2]
[335980054,1724650243410,-500.0,0.00012546,2]
[335980055,1724650243422,-664.25,0.00012546,2]
[335980056,1724650243434,-539.36,0.00012546,2]
[335980057,1724650243446,-698.27,0.00012546,2]
[335980058,1724650243458,-3212.28,0.00012546,2]
[335980059,1724650243467,-500.0,0.00012546,2]
[335980060,1724650243477,-500.0,0.00012546,2]
[335980061,1724650243487,-570.46,0.00012546,2]
[335980062,1724650243497,-500.0,0.00012546,2]
[335980063,1724650243507,-695.6,0.00012546,2]
[335980064,1724650243517,-500.0,0.00012546,2]
[335980065,1724650243527,-500.0,0.00012546,2]
[335980066,1724650243538,-604.91,0.00012546,2]
[335980067,1724650243550,-913.36,0.00012546,2]
[335980068,1724650243561,-732.61,0.00012546,2]
[335980069,1724650243572,-500.0,0.00012546,2]
[335980070,1724650243582,-175.28,0.00012546,2]
[335980071,1724650243592,-500.0,0.00012546,2]
[335980072,1724650243601,-1044.14,0.00012546,2]
[335980073,1724650243611,-519.46,0.00012546,2]
[335980074,1724650243624,-7810.31,0.00012546,2]
[335980075,1724650243635,-503.58,0.00012546,2]
[335980076,1724650243645,-1421.11,0.00012546,2]
[335980077,1724650243654,-4093.82,0.00012546,2]
[335980078,1724650243664,-568.77,0.00012546,2]
[335980079,1724650243673,-599.41,0.00012546,2]
[335980080,1724650243683,-566.0,0.00012546,2]
[335980081,1724650243692,-500.0,0.00012546,2]
[335980082,1724650243703,-569.5,0.00012546,2]
[335980083,1724650243716,-500.0,0.00012546,2]
[335980084,1724650243726,-500.0,0.00012546,2]
[335980085,1724650243736,-812.56,0.00012546,2]
[335980086,1724650243745,-500.0,0.00012546,2]
[335980087,1724650243755,-586.8,0.00012546,2]
[335980088,1724650243768,-500.0,0.00012546,2]
[335980089,1724650243778,-925.84,0.00012546,2]
[335980090,1724650243788,-500.0,0.00012546,2]
[335980091,1724650243798,-500.0,0.00012546,2]
[335980092,1724650243808,-661.03,0.00012546,2]
[335980093,1724650243818,-837.92,0.00012546,2]
[335980094,1724650243834,-500.0,0.00012546,2]
[335980095,1724650243847,-500.0,0.00012546,2]
[335980096,1724650243859,-663.23,0.00012546,2]
[335980097,1724650243871,-339.82085912,0.00012546,2]
[335980098,1724650243881,-500.0,0.00012546,2]
[335980099,1724650243894,-553.7,0.00012546,2]
[335980100,1724650243905,-546.73,0.00012546,2]
[335980101,1724650243915,-500.0,0.00012546,2]
[335980102,1724650243928,-637.51,0.00012546,2]
[335980103,1724650243938,-500.0,0.00012556,2]
[335980104,1724650243949,-616.13,0.00012556,2]
[335980105,1724650243960,-500.0,0.00012556,2]
[335980106,1724650243970,-500.0,0.00012556,2]
[335980107,1724650243980,-500.0,0.00012556,2]
[335980108,1724650243991,-500.0,0.00012556,2]
[335980109,1724650244001,-500.0,0.00012556,2]
[335980110,1724650244012,-500.0,0.00012556,2]
[335980111,1724650244022,-500.0,0.00012556,2]
[335980112,1724650244032,-500.0,0.00012556,2]
[335980113,1724650244042,-500.0,0.00012556,2]
[335980114,1724650244051,-500.0,0.00012556,2]
[335980115,1724650244062,-500.0,0.00012556,2]
[335980116,1724650244072,-500.0,0.00012556,2]
[335980117,1724650244083,-500.0,0.00012556,2]
[335980118,1724650244094,-500.0,0.00012556,2]
[335980119,1724650244106,-500.0,0.00012556,2]
[335980120,1724650244118,-335.49880222,0.00012556,2]
[335980121,1724650244129,-585.62,0.00012556,2]
[335980122,1724650244141,-500.0,0.00012556,2]
[335980123,1724650244153,-521.22,0.00012556,2]
[335980124,1724650244165,-500.0,0.00012556,2]
[335980125,1724650244176,-500.0,0.00012556,2]
[335980126,1724650244186,-500.0,0.00012556,2]
[335980127,1724650244197,-500.0,0.00012556,2]
[335980128,1724650244207,-500.0,0.00012556,2]
[335980129,1724650244476,-500.0,0.00012556,2]
[335980130,1724650244487,-778.5,0.00012556,2]
[335980131,1724650244497,-500.0,0.00012556,2]
[335980132,1724650244507,-500.0,0.00012556,2]
[335980133,1724650244517,-500.0,0.00012556,2]
[335980134,1724650244527,-500.0,0.00012556,2]
[335980135,1724650244538,-500.0,0.00012556,2]
[335980136,1724650244549,-500.0,0.00012556,2]
[335980137,1724650244560,-500.0,0.00012556,2]
[335980138,1724650244570,-500.0,0.00012556,2]
[335980139,1724650244580,-361.66751583,0.00012556,2]
[335980140,1724650244590,-500.0,0.00012556,2]
[335980141,1724650244599,-500.0,0.00012556,2]
[335980142,1724650244609,-500.0,0.00012556,2]
[335980143,1724650244624,-500.0,0.00012556,2]
[335980144,1724650244635,-500.0,0.00012556,2]
[335980145,1724650244646,-500.0,0.00012556,2]
[335980146,1724650244656,-500.0,0.00012556,2]
[335980147,1724650244667,-545.7698046,0.00012556,2]
[335980148,1724650244676,-500.0,0.00012556,2]
[335980149,1724650244687,-545.0532036,0.00012556,2]
[335980150,1724650244696,-500.0,0.00012556,2]
[335980151,1724650244706,-890.63,0.00012556,2]
[335980152,1724650244717,-949.21,0.00012556,2]
[335980153,1724650244727,-500.0,0.00012556,2]
[335980154,1724650244737,-500.0,0.00012556,2]
[335980155,1724650244746,-500.0,0.00012556,2]
[335980156,1724650244756,-500.0,0.00012556,2]
[335980157,1724650244766,-500.0,0.00012556,2]
[335980158,1724650244777,-532.63,0.00012556,2]
[335980159,1724650244787,-820.54,0.00012556,2]
[335980160,1724650244797,-1179.37,0.00012556,2]
[335980161,1724650244807,-500.0,0.00012556,2]
[335980162,1724650244817,-520.08,0.00012556,2]
[335980163,1724650244827,-500.0,0.00012556,2]
[335980164,1724650244838,-500.0,0.00012556,2]
[335980165,1724650244848,-969.63,0.00012556,2]
[335980166,1724650244858,-500.0,0.00012556,2]
[335980167,1724650244869,-500.0,0.00012556,2]
[335980168,1724650244879,-500.0,0.00012556,2]
[335980169,1724650244889,-543.69,0.00012556,2]
[335980170,1724650244899,-500.0,0.00012556,2]
[335980171,1724650244909,-500.0,0.00012556,2]
[335980172,1724650244919,-500.0,0.00012556,2]
[335980173,1724650244929,-500.0,0.00012556,2]
[335980174,1724650244938,-500.0,0.00012556,2]
[335980175,1724650244948,-500.0,0.00012556,2]
[335980176,1724650244958,-500.0,0.00012556,2]
[335980177,1724650244968,-500.0,0.00012556,2]
[335980178,1724650244978,-500.0,0.00012556,2]
[335980179,1724650244989,-414.61317114,0.00012556,2]
[335980180,1724650244999,-500.0,0.00012556,2]
[335980181,1724650245008,-500.0,0.00012556,2]
[335980182,1724650245019,-527.75,0.00012556,2]
[335980183,1724650245029,-500.0,0.00012556,2]
[335980184,1724650245038,-545.64,0.00012556,2]
[335980185,1724650245048,-500.0,0.00012556,2]
[335980186,1724650245058,-500.0,0.00012556,2]
[335980187,1724650245068,-500.0,0.00012556,2]
[335980188,1724650245078,-513.44,0.00012556,2]
[335980189,1724650245088,-500.0,0.00012556,2]
[335980190,1724650245098,-500.0,0.00012556,2]
[335980191,1724650245108,-500.0,0.00012556,2]
[335980192,1724650245120,-500.0,0.00012556,2]
[335980193,1724650245130,-500.0,0.00012556,2]
[335980194,1724650245139,-500.0,0.00012556,2]
[335980195,1724650245148,-500.0,0.00012556,2]
[335980196,1724650245158,-500.0,0.00012556,2]
[335980197,1724650245169,-500.0,0.00012556,2]
[335980198,1724650245179,-424.75559775,0.00012556,2]
[335980199,1724650245189,-500.0,0.00012556,2]
[335980200,1724650245199,-500.0,0.00012556,2]
[335980201,1724650245209,-584.75050944,0.00012556,2]
[335980202,1724650245218,-604.71,0.00012556,2]
[335980203,1724650245228,-500.0,0.00012556,2]
[335980204,1724650245238,-595.12177706,0.00012556,2]
[335980205,1724650245247,-500.0,0.00012556,2]
[335980206,1724650245257,-661.12,0.00012556,2]
[335980207,1724650245269,-500.0,0.00012556,2]
[335980208,1724650245278,-500.0,0.00012556,2]
[335980209,1724650245288,-500.0,0.00012556,2]
[335980210,1724650245298,-500.0,0.00012556,2]
[335980211,1724650245313,-500.0,0.00012556,2]
[335980212,1724650245323,-500.0,0.00012556,2]
[335980213,1724650245332,-507.2,0.00012556,2]
[335980214,1724650245342,-619.28,0.00012556,2]
[335980215,1724650245352,-500.0,0.00012556,2]
[335980216,1724650245362,-500.0,0.00012556,2]
[335980217,1724650245372,-500.0,0.00012556,2]
[335980218,1724650245382,-500.0,0.00012556,2]
[335980219,1724650245391,-500.0,0.00012556,2]
[335980220,1724650245402,-500.0,0.00012556,2]
[335980221,1724650245412,-500.0,0.00012556,2]
[335980222,1724650245421,-662.87,0.00012556,2]
[335980223,1724650245432,-500.0,0.00012557,2]
[335980224,1724650245442,-533.52,0.00012557,2]
[335980225,1724650245452,-1065.11,0.00012557,2]
[335980226,1724650245462,-650.59,0.00012557,2]
[335980227,1724650245471,-500.0,0.00012557,2]
[335980228,1724650245481,-500.0,0.00012557,2]
[335980229,1724650245491,-558.36,0.00012557,2]
[335980230,1724650245500,-500.0,0.00012557,2]
[335980231,1724650245510,-632.22,0.00012557,2]
[335980232,1724650245521,-500.0,0.00012557,2]
[335980234,1724650245531,-248.21792377,0.00012557,2]
[335980236,1724650245540,-503.42,0.00012557,2]
[335980238,1724650245550,-517.43,0.00012557,2]
[335980239,1724650245560,-500.0,0.00012557,2]
[335980240,1724650245570,-500.0,0.00012557,2]
[335980241,1724650245580,-1065.37,0.00012557,2]
[335980243,1724650245590,-500.0,0.00012557,2]
[335980244,1724650245599,-548.17,0.00012557,2]
[335980245,1724650245610,-696.98,0.00012557,2]
[335980246,1724650245619,-514.61,0.00012557,2]
[335980247,1724650245629,-605.07,0.00012557,2]
[335980248,1724650245639,-571.71,0.00012557,2]
[335980249,1724650245648,-500.0,0.00012557,2]
[335980250,1724650245658,-500.0,0.00012557,2]
[335980251,1724650245668,-500.0,0.00012557,2]
[335980252,1724650245677,-500.0,0.00012557,2]
[335980253,1724650245687,-500.0,0.00012557,2]
[335980254,1724650245697,-500.0,0.00012557,2]
[335980255,1724650245706,-500.0,0.00012557,2]
[335980256,1724650245716,-500.0,0.00012557,2]
[335980257,1724650245726,-500.0,0.00012557,2]
[335980258,1724650245736,-878.22,0.00012557,2]
[335980259,1724650245748,-500.0,0.00012557,2]
[335980261,1724650245758,-500.0,0.00012557,2]
[335980263,1724650245769,-837.41,0.00012557,2]
[335980265,1724650245778,-500.0,0.00012557,2]
[335980267,1724650245788,-947.98,0.00012557,2]
[335980268,1724650245797,-892.05,0.00012557,2]
[335980269,1724650245807,-853.15,0.00012557,2]
[335980270,1724650245817,-637.09,0.00012557,2]
[335980272,1724650245827,-771.48,0.00012557,2]
[335980273,1724650245837,-529.61,0.00012557,2]
[335980274,1724650245847,-500.0,0.00012557,2]
[335980275,1724650245856,-500.0,0.00012557,2]
[335980276,1724650245866,-762.81,0.00012557,2]
[335980277,1724650245876,-939.72,0.00012557,2]
[335980278,1724650245886,-538.01,0.00012557,2]
[335980279,1724650245896,-692.27,0.00012557,2]
[335980280,1724650245906,-500.0,0.00012557,2]
[335980281,1724650245915,-500.0,0.00012557,2]
[335980282,1724650245925,-500.0,0.00012557,2]
[335980283,1724650245935,-500.0,0.00012557,2]
[335980284,1724650245944,-648.08,0.00012557,2]
[335980285,1724650245954,-500.0,0.00012557,2]
[335980286,1724650245964,-605.5,0.00012557,2]
[335980287,1724650245974,-651.59,0.00012557,2]
[335980288,1724650245984,-500.0,0.00012557,2]
[335980289,1724650245993,-918.77,0.00012557,2]
[335980290,1724650246003,-500.0,0.00012557,2]
[335980291,1724650246014,-837.79,0.00012557,2]
[335980292,1724650246024,-593.29,0.00012557,2]
[335980293,1724650246034,-855.96,0.00012557,2]
[335980294,1724650246046,-500.0,0.00012557,2]
[335980295,1724650246058,-500.0,0.00012557,2]
[335980296,1724650246068,-534.55,0.00012557,2]
[335980297,1724650246078,-500.0,0.00012557,2]
[335980298,1724650246088,-500.0,0.00012557,2]
[335980299,1724650246098,-521.77,0.00012557,2]
[335980300,1724650246108,-694.18,0.00012557,2]
[335980301,1724650246118,-874.63,0.00012557,2]
[335980302,1724650246129,-500.0,0.00012557,2]
[335980303,1724650246139,-500.0,0.00012573,2]
[335980304,1724650246151,-500.0,0.00012573,2]
[335980305,1724650246161,-500.0,0.00012573,2]
[335980306,1724650246171,-500.0,0.00012573,2]
[335980307,1724650246181,-1133.72762021,0.00012629,2]
[335980308,1724650246195,-153.0,0.00012641,2]
[335980309,1724650246206,-153.0,0.00012641,2]
[335980310,1724650246216,-558.4,0.00012809,2]
[335980311,1724650246226,-865.51,0.00012809,2]
[335980312,1724650246238,-500.0,0.00012809,2]
[335980313,1724650246250,-231.72,0.00012809,2]
[335980314,1724650246261,-500.0,0.00012819,2]
[335980315,1724650246275,-9543.39,0.00012819,2]
[335980316,1724650246285,-2405.69,0.00012819,2]
[335980317,1724650246295,-3996.92,0.00012819,2]
[335980318,1724650246307,-656.04,0.00012819,2]
[335980319,1724650246318,-2925.05,0.00012819,2]
[335980320,1724650246328,-500.0,0.00012819,2]
[335980321,1724650246339,-500.0,0.00012819,2]
[335980322,1724650246350,-1190.65,0.00012819,2]
[335980323,1724650246360,-500.0,0.00012819,2]
[335980324,1724650246370,-513.98,0.00012819,2]
[335980325,1724650246385,-611.7,0.00012819,2]
[335980326,1724650246395,-500.0,0.00012819,2]
[335980327,1724650246405,-500.0,0.00012819,2]
[335980328,1724650246415,-22994.88,0.00012819,2]
[335980329,1724650246425,-500.0,0.00012819,2]
[335980330,1724650246434,-623.28,0.00012819,2]
[335980331,1724650246445,-595.72,0.00012819,2]
[335980332,1724650246455,-667.42,0.00012819,2]
[335980333,1724650246466,-1358.48,0.00012819,2]
[335980334,1724650246476,-500.0,0.00012819,2]
[335980335,1724650246485,-500.0,0.00012819,2]
[335980336,1724650246496,-500.0,0.00012819,2]
[335980337,1724650246506,-1125.94,0.00012819,2]
[335980338,1724650246516,-986.66,0.00012819,2]
[335980339,1724650246526,-6027.87,0.00012819,2]
[335980340,1724650246536,-500.0,0.00012819,2]
[335980341,1724650246547,-639.95,0.00012819,2]
[335980342,1724650246557,-719.62,0.00012819,2]
[335980343,1724650246566,-500.0,0.00012819,2]
[335980344,1724650246576,-535.91,0.00012819,2]
[335980345,1724650246585,-8517.74,0.00012819,2]
[335980346,1724650246595,-500.0,0.00012819,2]
[335980347,1724650246605,-500.0,0.00012819,2]
[335980348,1724650246615,-500.0,0.00012819,2]
[335980349,1724650246625,-1901.09,0.00012819,2]
[335980350,1724650246634,-500.0,0.00012819,2]
[335980351,1724650246643,-500.0,0.00012819,2]
[335980352,1724650246653,-541.1,0.00012819,2]
[335980353,1724650246663,-500.0,0.00012819,2]
[335980354,1724650246672,-1667.71,0.00012819,2]
[335980355,1724650246682,-770.65,0.00012819,2]
[335980356,1724650246692,-500.0,0.00012819,2]
[335980357,1724650246702,-13937.9147347,0.0001282,5]
[335980358,1724650246711,-500.0,0.0001282,2]
[335980359,1724650246721,-741.16,0.0001282,2]
[335980360,1724650246731,-500.0,0.0001282,2]
[335980361,1724650246740,-500.0,0.0001282,2]
[335980362,1724650246750,-500.0,0.0001282,2]
[335980363,1724650246759,-500.0,0.0001282,2]
[335980364,1724650246769,-500.0,0.0001282,2]
[335980365,1724650246778,-840.02,0.0001282,2]
[335980366,1724650246791,-803.44,0.0001282,2]
[335980367,1724650246801,-500.0,0.0001282,2]
[335980368,1724650246810,-575.83,0.0001282,2]
[335980369,1724650246820,-500.0,0.0001282,2]
[335980370,1724650246830,-640.78,0.0001282,2]
[335980371,1724650246839,-500.0,0.0001282,2]
[335980372,1724650246850,-663.69,0.0001282,2]
[335980373,1724650246860,-500.0,0.0001282,2]
[335980374,1724650246869,-665.74,0.0001282,2]
[335980375,1724650246879,-500.0,0.0001282,2]
[335980376,1724650246889,-760.06,0.0001282,2]
[335980377,1724650246898,-500.0,0.0001282,2]
[335980378,1724650246907,-937.63,0.0001282,2]
[335980379,1724650246917,-500.0,0.0001282,2]
[335980380,1724650246926,-835.31,0.0001282,2]
[335980382,1724650247007,-500.0,0.0001282,2]
[335980383,1724650247017,-549.53,0.0001282,2]
[335980384,1724650247028,-500.0,0.0001282,2]
[335980385,1724650247039,-754.27,0.0001282,2]
[335980386,1724650247050,-500.0,0.0001282,2]
[335980387,1724650247061,-500.0,0.0001282,2]
[335980388,1724650247071,-517.95,0.0001282,2]
[335980389,1724650247080,-500.0,0.0001282,2]
[335980390,1724650247089,-500.0,0.0001282,2]
[335980391,1724650247098,-500.0,0.0001282,2]
[335980392,1724650247107,-874.82,0.0001282,2]
[335980393,1724650247117,-500.0,0.0001282,2]
[335980394,1724650247128,-500.0,0.0001282,2]
[335980395,1724650247139,-796.99,0.0001282,2]
[335980396,1724650247150,-500.0,0.0001282,2]
[335980397,1724650247160,-598.16,0.0001282,2]
[335980398,1724650247170,-622.53,0.0001282,2]
[335980399,1724650247182,-500.0,0.0001282,2]
[335980400,1724650247192,-649.38,0.0001282,2]
[335980401,1724650247202,-855.92,0.0001282,2]
[335980402,1724650247211,-500.0,0.0001282,2]
[335980403,1724650247222,-664.25,0.0001282,2]
[335980404,1724650247232,-539.36,0.0001282,2]
[335980405,1724650247253,-698.27,0.0001282,2]
[335980406,1724650247267,-3212.28,0.0001282,2]
[335980407,1724650247277,-500.0,0.0001282,2]
[335980408,1724650247287,-500.0,0.0001282,2]
[335980409,1724650247298,-570.46,0.0001282,2]
[335980410,1724650247314,-500.0,0.0001282,2]
[335980411,1724650247324,-695.6,0.0001282,2]
[335980412,1724650247334,-500.0,0.0001282,2]
[335980413,1724650247345,-500.0,0.0001282,2]
[335980414,1724650247357,-604.91,0.0001282,2]
[335980415,1724650247368,-913.36,0.0001282,2]
[335980416,1724650247379,-732.61,0.0001282,2]
[335980417,1724650247389,-500.0,0.0001282,2]
[335980418,1724650247399,-500.0,0.0001282,2]
[335980419,1724650247408,-1044.14,0.0001282,2]
[335980420,1724650247417,-519.46,0.0001282,2]
[335980421,1724650247427,-7810.31,0.0001282,2]
[335980422,1724650247437,-503.58,0.0001282,2]
[335980423,1724650247447,-1421.11,0.0001282,2]
[335980424,1724650247457,-4093.82,0.0001282,2]
[335980425,1724650247467,-568.77,0.0001282,2]
[335980426,1724650247476,-599.41,0.0001282,2]
[335980427,1724650247486,-566.0,0.0001282,2]
[335980428,1724650247496,-500.0,0.0001282,2]
[335980429,1724650247507,-569.5,0.0001282,2]
[335980430,1724650247517,-500.0,0.0001282,2]
[335980431,1724650247527,-500.0,0.0001282,2]
[335980432,1724650247537,-812.56,0.0001282,2]
[335980433,1724650247548,-500.0,0.0001282,2]
[335980434,1724650247559,-586.8,0.0001282,2]
[335980435,1724650247570,-500.0,0.0001282,2]
[335980436,1724650247579,-925.84,0.0001282,2]
[335980437,1724650247589,-500.0,0.0001282,2]
[335980438,1724650247599,-500.0,0.0001282,2]
[335980439,1724650247609,-661.03,0.0001282,2]
[335980440,1724650247619,-837.92,0.0001282,2]
[335980441,1724650247629,-500.0,0.0001282,2]
[335980442,1724650247638,-500.0,0.0001282,2]
[335980443,1724650247647,-663.23,0.0001282,2]
[335980444,1724650247657,-500.0,0.0001282,2]
[335980445,1724650247666,-553.7,0.0001282,2]
[335980446,1724650247675,-546.73,0.0001282,2]
[335980447,1724650247685,-500.0,0.0001282,2]
[335980448,1724650247694,-637.51,0.0001282,2]
[335980449,1724650247703,-500.0,0.0001283,2]
[335980450,1724650247713,-616.13,0.0001283,2]
[335980451,1724650247723,-500.0,0.0001283,2]
[335980452,1724650247732,-500.0,0.0001283,2]
[335980453,1724650247742,-500.0,0.0001283,2]
[335980454,1724650247754,-500.0,0.0001283,2]
[335980455,1724650247764,-500.0,0.0001283,2]
[335980456,1724650247774,-500.0,0.0001283,2]
[335980457,1724650247784,-500.0,0.0001283,2]
[335980458,1724650247793,-500.0,0.0001283,2]